fUSD/lending_fUSD_20250911
["ID","MTS","AMOUNT","RATE_DAILY","PERIOD"]
[384890061,1757620242898,-599.28,0.00027397,7]
[384890063,1757620242908,-400.0,0.00027397,7]
[384890065,1757620242918,-400.0,0.00027397,7]
[384890067,1757620242927,-1262.61,0.00027397,7]
[384890069,1757620242937,-400.0,0.00027397,7]
[384890071,1757620242947,-500.0,0.00027397,7]
[384890073,1757620242956,-400.0,0.00027397,7]
[384890075,1757620242966,-152.530329,0.00027397,7]
[384890077,1757620242976,-151.0,0.00027397,7]
[384890079,1757620242985,-400.0,0.00027397,7]
[384890081,1757620242995,-151.0,0.00027397,7]
[384890084,1757620243005,-151.451987,0.00027397,7]
[384890086,1757620243015,-151.0,0.00027397,7]
[384890088,1757620243024,-400.0,0.00027397,7]
[384890090,1757620243034,-400.0,0.00027397,7]
[384890092,1757620243043,-400.0,0.00027397,7]
[384890094,1757620243053,-400.0,0.00027397,7]
[384890096,1757620243062,-550.79,0.00027397,7]
[384890098,1757620243072,-400.0,0.00027397,7]
[384890100,1757620243081,-400.0,0.00027397,7]
[384890102,1757620243091,-400.0,0.00027397,7]
[384890104,1757620243100,-539.83,0.00027397,7]
[384890106,1757620243110,-400.0,0.00027397,7]
[384890108,1757620243120,-400.0,0.00027397,7]
[384890111,1757620243130,-400.0,0.00027397,7]
[384890114,1757620243140,-400.0,0.00027397,7]
[384890117,1757620243149,-1413.68,0.00027397,7]
[384890120,1757620243160,-400.0,0.00027397,7]
[384890123,1757620243170,-423.76,0.00027397,7]
[384890125,1757620243180,-434.5,0.00027397,7]
[384890127,1757620243189,-631.57,0.00027397,7]
[384890129,1757620243199,-638.92,0.00027397,7]
[384890131,1757620243209,-400.0,0.00027397,7]
[384890133,1757620243218,-400.0,0.00027397,7]
[384890136,1757620243228,-1301.63,0.00027397,7]
[384890138,1757620243237,-461.01,0.00027397,7]
[384890140,1757620243247,-400.0,0.00027397,7]
[384890142,1757620243258,-400.0,0.00027397,7]
[384890144,1757620243268,-400.0,0.00027397,7]
[384890146,1757620243278,-400.0,0.00027397,7]
[384890148,1757620243288,-400.0,0.00027397,7]
[384890150,1757620243299,-400.0,0.00027397,7]
[384890152,1757620243310,-587.83,0.00027397,7]
[384890154,1757620243320,-400.0,0.00027397,7]
[384890157,1757620243330,-434.57351922,0.00027397,7]
[384890159,1757620243339,-400.0,0.00027397,7]
[384890161,1757620243349,-400.0,0.00027397,7]
[384890163,1757620243359,-655.84,0.00027397,7]
[384890165,1757620243368,-400.0,0.00027397,7]
[384890167,1757620243378,-400.0,0.00027397,7]
[384890169,1757620243388,-400.0,0.00027397,7]
[384890171,1757620243398,-400.0,0.00027397,7]
[384890173,1757620243407,-400.0,0.00027397,7]
[384890175,1757620243419,-1949.65,0.00027397,7]
[384890177,1757620243429,-1569.08,0.00027397,7]
[384890179,1757620243441,-400.0,0.00027397,7]
[384890181,1757620243450,-573.26,0.00027397,7]
[384890183,1757620243460,-400.0,0.00027397,7]
[384890185,1757620243469,-400.0,0.00027397,7]
[384890187,1757620243479,-400.0,0.00027397,7]
[384890189,1757620243488,-1129.89,0.00027397,7]
[384890191,1757620243499,-2078.14,0.00027397,7]
[384890194,1757620243508,-400.0,0.00027397,7]
[384890196,1757620243517,-451.51,0.00027397,7]
[384890198,1757620243527,-151.0,0.00027397,7]
[384890200,1757620243536,-2296.42,0.00027397,7]
[384890202,1757620243545,-400.0,0.00027397,7]
[384890204,1757620243555,-400.0,0.00027397,7]
[384890206,1757620243565,-1772.95,0.00027397,7]
[384890208,1757620243575,-400.0,0.00027397,7]
[384890210,1757620243585,-400.0,0.00027397,7]
[384890212,1757620243594,-400.0,0.00027397,7]
[384890214,1757620243605,-328.33280423,0.00027397,7]
[384890216,1757620243615,-400.0,0.00027397,7]
[384890218,1757620243625,-472.08,0.00027397,7]
[384890220,1757620243634,-400.0,0.00027397,7]
[384890222,1757620243644,-400.0,0.00027397,7]
[384890224,1757620243654,-400.0,0.00027397,7]
[384890227,1757620243664,-447.85,0.00027397,7]
[384890229,1757620243674,-400.0,0.00027397,7]
[384890231,1757620243683,-976.57,0.00027397,7]
[384890233,1757620243693,-400.0,0.00027397,7]
[384890235,1757620243704,-1934.19,0.00027397,7]
[384890237,1757620243718,-1759.27,0.00027397,7]
[384890239,1757620243728,-400.0,0.00027397,7]
[384890241,1757620243737,-400.0,0.00027397,7]
[384890243,1757620243747,-400.0,0.00027397,7]
[384890245,1757620243757,-1699.57,0.00027397,7]
[384890246,1757620243768,-400.0,0.00027397,7]
[384890247,1757620243777,-1623.24,0.00027397,7]
[384890248,1757620243787,-1281.61,0.00027397,7]
[384890249,1757620243798,-400.0,0.00027397,7]
[384890250,1757620243808,-400.0,0.00027397,7]
[384890251,1757620243818,-400.0,0.00027397,7]
[384890252,1757620243828,-400.0,0.00027397,7]
[384890253,1757620243838,-400.0,0.00027397,7]
[384890254,1757620243849,-400.0,0.00027397,7]
[384890255,1757620243859,-3618.27,0.00027397,7]
[384890256,1757620243876,-180.0,0.00027397,7]
[384890257,1757620243885,-548.49,0.00027397,7]
[384890258,1757620243896,-400.0,0.00027397,7]
[384890259,1757620243906,-400.0,0.00027397,7]
[384890261,1757620243917,-400.0,0.00027397,7]
[384890263,1757620243927,-1442.9,0.00027397,7]
[384890265,1757620243942,-2023.83,0.00027397,7]
[384890266,1757620243954,-874.32,0.00027397,7]
[384890267,1757620243964,-400.0,0.00027397,7]
[384890269,1757620243974,-559.89,0.00027397,7]
[384890271,1757620243984,-400.0,0.00027397,7]
[384890273,1757620243994,-400.0,0.00027397,7]
[384890275,1757620244005,-1870.52,0.00027397,7]
[384890277,1757620244015,-400.0,0.00027397,7]
[384890279,1757620244024,-1038.88,0.00027397,7]
[384890281,1757620244034,-3244.45,0.00027397,7]
[384890283,1757620244044,-421.05,0.00027397,7]
[384890285,1757620244054,-255.38727611,0.00027397,7]
[384890288,1757620244067,-400.0,0.00027397,7]
[384890290,1757620244078,-400.0,0.00027397,7]
[384890292,1757620244088,-3245.04,0.00027397,7]
[384890294,1757620244098,-2849.39,0.00027397,7]
[384890296,1757620244110,-400.0,0.00027397,7]
[384890298,1757620244120,-900.64,0.00027397,7]
[384890300,1757620244130,-400.0,0.00027397,7]
[384890302,1757620244139,-1015.4,0.00027397,7]
[384890304,1757620244149,-400.0,0.00027397,7]
[384890306,1757620244160,-151.0,0.00027397,7]
[384890308,1757620244170,-151.0,0.00027397,7]
[384890310,1757620244180,-400.0,0.00027397,7]
[384890312,1757620244190,-185.990276,0.00027397,7]
[384890314,1757620244199,-2061.18,0.00027397,7]
[384890315,1757620244210,-400.0,0.00027397,7]
[384890316,1757620244220,-634.56,0.00027397,7]
[384890317,1757620244229,-519.23,0.00027397,7]
[384890318,1757620244239,-400.0,0.00027397,7]
[384890319,1757620244249,-400.0,0.00027397,7]
[384890320,1757620244258,-500.0,0.00027397,2]
[384890321,1757620244268,-151.0,0.00027397,7]
[384890322,1757620244278,-500.0,0.00027397,2]
[384890323,1757620244287,-151.0,0.00027397,7]
[384890325,1757620244297,-151.0,0.00027397,7]
[384890327,1757620244307,-1273.03,0.00027397,7]
[384890329,1757620244317,-782.32,0.00027397,7]
[384890331,1757620244327,-843.9,0.00027397,7]
[384890333,1757620244339,-151.0,0.00027397,7]
[384890335,1757620244349,-400.0,0.00027397,7]
[384890337,1757620244359,-151.0,0.00027397,7]
[384890339,1757620244369,-1222.09,0.00027397,7]
[384890341,1757620244379,-400.0,0.00027397,7]
[384890343,1757620244389,-400.0,0.00027397,7]
[384890345,1757620244399,-400.0,0.00027397,7]
[384890348,1757620244409,-400.0,0.00027397,7]
[384890350,1757620244419,-2214.49,0.00027397,7]
[384890352,1757620244429,-1023.46,0.00027397,7]
[384890354,1757620244441,-935.93,0.00027397,7]
[384890356,1757620244451,-400.0,0.00027397,7]
[384890358,1757620244461,-400.0,0.00027397,7]
[384890360,1757620244470,-1217.98,0.00027397,7]
[384890362,1757620244480,-1772.64,0.00027397,7]
[384890364,1757620244490,-368.15594804,0.00027397,7]
[384890366,1757620244500,-400.0,0.00027397,7]
[384890395,1757620244765,-400.0,0.00027397,7]
[384890398,1757620244784,-400.0,0.00027397,7]
[384890400,1757620244795,-2675.98,0.00027397,7]
[384890402,1757620244805,-393.98664607,0.00027397,7]
[384890404,1757620244815,-400.0,0.00027397,7]
[384890406,1757620244824,-402.14503979,0.00027397,7]
[384890408,1757620244833,-400.0,0.00027397,7]
[384890410,1757620244844,-989.51,0.00027397,7]
[384890412,1757620244853,-406.63308644,0.00027397,7]
[384890414,1757620244863,-2500.28,0.00027397,7]
[384890416,1757620244875,-400.0,0.00027397,7]
[384890418,1757620244884,-1883.38,0.00027397,7]
[384890420,1757620244893,-400.0,0.00027397,7]
[384890422,1757620244902,-1326.72,0.00027397,7]
[384890424,1757620244913,-400.0,0.00027397,7]
[384890426,1757620244922,-1539.36,0.00027397,7]
[384890428,1757620244931,-400.0,0.00027397,7]
[384890430,1757620244941,-571.87,0.00027397,7]
[384890433,1757620244951,-618.03,0.00027397,7]
[384890435,1757620244960,-400.0,0.00027397,7]
[384890437,1757620244970,-400.0,0.00027397,7]
[384890439,1757620244979,-656.28,0.00027397,7]
[384890441,1757620244988,-400.0,0.00027397,7]
[384890443,1757620244998,-400.0,0.00027397,7]
[384890445,1757620245007,-400.0,0.00027397,7]
[384890447,1757620245016,-2951.51,0.00027397,7]
[384890449,1757620245026,-2570.45,0.00027397,7]
[384890451,1757620245036,-400.0,0.00027397,7]
[384890453,1757620245045,-400.0,0.00027397,7]
[384890455,1757620245055,-400.0,0.00027397,7]
[384890457,1757620245064,-500.0,0.00027397,7]
[384890459,1757620245074,-400.0,0.00027397,7]
[384890461,1757620245084,-400.0,0.00027397,7]
[384890463,1757620245093,-400.0,0.00027397,7]
[384890465,1757620245102,-1100.31,0.00027397,7]
[384890467,1757620245112,-1141.14,0.00027397,7]
[384890469,1757620245122,-557.19,0.00027397,7]
[384890471,1757620245132,-400.0,0.00027397,7]
[384890473,1757620245142,-2877.82,0.00027397,7]
[384890475,1757620245151,-400.0,0.00027397,7]
[384890477,1757620245161,-687.63,0.00027397,7]
[384890479,1757620245171,-400.0,0.00027397,7]
[384890481,1757620245181,-400.0,0.00027397,7]
[384890483,1757620245191,-1184.56,0.00027397,7]
[384890485,1757620245200,-2188.44,0.00027397,7]
[384890487,1757620245210,-2081.41,0.00027397,7]
[384890489,1757620245219,-400.0,0.00027397,7]
[384890491,1757620245229,-819.61,0.00027397,7]
[384890493,1757620245238,-819.61,0.00027397,7]
[384890495,1757620245248,-819.61,0.00027397,7]
[384890497,1757620245257,-819.61,0.00027397,7]
[384890499,1757620245266,-819.61,0.00027397,7]
[384890501,1757620245275,-819.61,0.00027397,7]
[384890503,1757620245285,-819.61,0.00027397,7]
[384890505,1757620245294,-400.0,0.00027397,7]
[384890507,1757620245307,-819.61,0.00027397,7]
[384890509,1757620245317,-819.61,0.00027397,7]
[384890511,1757620245326,-2396.81,0.00027397,7]
[384890513,1757620245336,-819.61,0.00027397,7]
[384890515,1757620245346,-819.61,0.00027397,7]
[384890517,1757620245355,-400.0,0.00027397,7]
[384890519,1757620245363,-400.0,0.00027397,7]
[384890521,1757620245373,-400.0,0.00027397,7]
[384890523,1757620245382,-400.0,0.00027397,7]
[384890525,1757620245391,-400.0,0.00027397,7]
[384890527,1757620245401,-151.641187,0.00027397,7]
[384890529,1757620245410,-401.77,0.00027397,7]
[384890531,1757620245420,-1537.93,0.00027397,7]
[384890533,1757620245430,-400.0,0.00027397,7]
[384890535,1757620245439,-400.0,0.00027397,7]
[384890537,1757620245448,-820.95,0.00027397,7]
[384890539,1757620245457,-850.53,0.00027397,7]
[384890541,1757620245466,-400.0,0.00027397,7]
[384890543,1757620245475,-400.0,0.00027397,7]
[384890545,1757620245484,-400.0,0.00027397,7]
[384890547,1757620245494,-2492.22,0.00027397,7]
[384890549,1757620245503,-400.0,0.00027397,7]
[384890551,1757620245512,-605.15,0.00027397,7]
[384890553,1757620245521,-158.04521,0.00027397,7]
[384890555,1757620245531,-400.0,0.00027397,7]
[384890557,1757620245541,-2051.8,0.00027397,7]
[384890559,1757620245551,-400.0,0.00027397,7]
[384890561,1757620245560,-400.0,0.00027397,7]
[384890563,1757620245569,-1662.8,0.00027397,7]
[384890565,1757620245580,-1492.71,0.00027397,7]
[384890567,1757620245589,-400.0,0.00027397,7]
[384890568,1757620245599,-1637.3,0.00027397,7]
[384890570,1757620245608,-2072.33,0.00027397,7]
[384890572,1757620245617,-2943.27,0.00027397,7]
[384890574,1757620245628,-400.0,0.00027397,7]
[384890576,1757620245638,-649.22,0.00027397,7]
[384890578,1757620245647,-151.0,0.00027397,7]
[384890580,1757620245656,-444.61,0.00027397,7]
[384890582,1757620245666,-400.0,0.00027397,7]
[384890584,1757620245675,-2496.92,0.00027397,7]
[384890586,1757620245684,-151.0,0.00027397,7]
[384890588,1757620245694,-400.0,0.00027397,7]
[384890590,1757620245703,-2271.16,0.00027397,7]
[384890592,1757620245712,-400.0,0.00027397,7]
[384890594,1757620245725,-400.0,0.00027397,7]
[384890596,1757620245735,-151.0,0.00027397,7]
[384890598,1757620245744,-167.507508,0.00027397,7]
[384890600,1757620245754,-400.0,0.00027397,7]
[384890602,1757620245766,-1193.39,0.00027397,7]
[384890604,1757620245775,-400.0,0.00027397,7]
[384890606,1757620245785,-400.0,0.00027397,7]
[384890608,1757620245795,-400.0,0.00027397,7]
[384890610,1757620245806,-801.45,0.00027397,7]
[384890612,1757620245816,-1982.97,0.00027397,7]
[384890615,1757620245826,-428.61,0.00027397,7]
[384890617,1757620245836,-1306.21,0.00027397,7]
[384890618,1757620245845,-400.0,0.00027397,7]
[384890619,1757620245854,-400.0,0.00027397,7]
[384890620,1757620245864,-400.0,0.00027397,7]
[384890621,1757620245873,-400.0,0.00027397,7]
[384890622,1757620245883,-400.0,0.00027397,7]
[384890623,1757620245893,-1975.11,0.00027397,7]
[384890624,1757620245902,-2985.47,0.00027397,7]
[384890625,1757620245912,-151.0,0.00027397,7]
[384890626,1757620245922,-400.0,0.00027397,7]
[384890627,1757620245932,-569.13,0.00027397,7]
[384890628,1757620245942,-400.0,0.00027397,7]
[384890629,1757620245952,-3085.55,0.00027397,7]
[384890630,1757620245961,-2419.46,0.00027397,7]
[384890631,1757620245970,-400.0,0.00027397,7]
[384890632,1757620245980,-400.0,0.00027397,7]
[384890633,1757620245989,-400.0,0.00027397,7]
[384890634,1757620245998,-1799.18,0.00027397,7]
[384890635,1757620246008,-400.0,0.00027397,7]
[384890636,1757620246018,-400.0,0.00027397,7]
[384890637,1757620246028,-1530.74,0.00027397,7]
[384890638,1757620246037,-400.31131919,0.00027397,7]
[384890639,1757620246046,-513.09,0.00027397,7]
[384890640,1757620246056,-400.0,0.00027397,7]
[384890641,1757620246065,-400.0,0.00027397,7]
[384890642,1757620246075,-400.0,0.00027397,7]
[384890644,1757620246084,-2182.5,0.00027397,7]
[384890645,1757620246094,-1897.3,0.00027397,7]
[384890646,1757620246104,-903.26,0.00027397,7]
[384890647,1757620246113,-1845.32,0.00027397,7]
[384890648,1757620246124,-435.04,0.00027397,7]
[384890649,1757620246133,-400.0,0.00027397,7]
[384890650,1757620246143,-1564.44,0.00027397,7]
[384890651,1757620246152,-3024.4,0.00027397,7]
[384890652,1757620246162,-400.0,0.00027397,7]
[384890653,1757620246171,-400.0,0.00027397,7]
[384890654,1757620246180,-400.0,0.00027397,7]
[384890655,1757620246189,-2023.59,0.00027397,7]
[384890657,1757620246198,-2593.14,0.00027397,7]
[384890659,1757620246208,-735.97,0.00027397,7]
[384890661,1757620246217,-400.0,0.00027397,7]
[384890663,1757620246226,-400.0,0.00027397,7]
[384890664,1757620246236,-400.0,0.00027397,7]
[384890665,1757620246245,-2354.06,0.00027397,7]
[384890666,1757620246254,-400.0,0.00027397,7]
[384890667,1757620246264,-400.0,0.00027397,7]
[384890668,1757620246273,-4384.82,0.00027397,5]
[384890669,1757620246282,-400.0,0.00027397,7]
[384890670,1757620246291,-400.0,0.00027397,7]
[384890671,1757620246301,-400.0,0.00027397,7]
[384890672,1757620246310,-400.0,0.00027397,7]
[384890673,1757620246320,-1559.9,0.00027397,7]
[384890674,1757620246329,-400.0,0.00027397,7]
[384890675,1757620246339,-404.39,0.00027397,7]
[384890676,1757620246348,-400.0,0.00027397,7]
[384890677,1757620246357,-1958.65,0.00027397,7]
[384890678,1757620246366,-2895.66,0.00027397,7]
[384890679,1757620246375,-2271.63,0.00027397,7]
[384890680,1757620246384,-407.13224061,0.00027397,7]
[384890681,1757620246393,-1780.25,0.00027397,7]
[384890682,1757620246402,-500.0,0.00027397,7]
[384890683,1757620246411,-400.0,0.00027397,7]
[384890684,1757620246421,-2980.24,0.00027397,7]
[384890685,1757620246430,-400.0,0.00027397,7]
[384890686,1757620246440,-400.0,0.00027397,7]
[384890687,1757620246449,-1273.42,0.00027397,7]
[384890688,1757620246458,-400.0,0.00027397,7]
[384890689,1757620246469,-400.0,0.00027397,7]
[384890690,1757620246479,-877.62,0.00027397,7]
[384890691,1757620246489,-400.0,0.00027397,7]
[384890692,1757620246498,-2438.08,0.00027397,7]
[384890693,1757620246507,-400.0,0.00027397,7]
[384890694,1757620246517,-400.0,0.00027397,7]
[384890695,1757620246527,-400.0,0.00027397,2]
[384890696,1757620246536,-400.0,0.00027397,7]
[384890697,1757620246546,-975.01,0.00027397,7]
[384890698,1757620246556,-2448.27,0.00027397,7]
[384890699,1757620246565,-400.0,0.00027397,7]
[384890700,1757620246576,-1368.9,0.00027397,7]
[384890701,1757620246586,-1022.19,0.00027397,7]
[384890702,1757620246596,-979.73,0.00027397,7]
[384890703,1757620246606,-1622.7,0.00027397,7]
[384890704,1757620246616,-400.0,0.00027397,7]
[384890705,1757620246625,-665.86,0.00027397,7]
[384890706,1757620246635,-400.0,0.00027397,7]
[384890707,1757620246644,-400.0,0.00027397,7]
[384890708,1757620246654,-400.0,0.00027397,7]
[384890709,1757620246664,-894.93,0.00027397,7]
[384890710,1757620246674,-502.83,0.00027397,7]
[384890711,1757620246684,-2849.26,0.00027397,7]
[384890712,1757620246693,-400.0,0.00027397,7]
[384890713,1757620246703,-400.0,0.00027397,7]
[384890714,1757620246713,-400.0,0.00027397,7]
[384890715,1757620246726,-699.62,0.00027397,7]
[384890716,1757620246736,-400.0,0.00027397,7]
[384890717,1757620246746,-400.0,0.00027397,7]
[384890718,1757620246755,-2054.62,0.00027397,7]
[384890719,1757620246766,-400.0,0.00027397,7]
[384890720,1757620246776,-485.21725107,0.00027397,7]
[384890721,1757620246785,-1006.24,0.00027397,7]
[384890722,1757620246796,-400.0,0.00027397,7]
[384890723,1757620246806,-425.01,0.00027397,7]
[384890724,1757620246816,-400.0,0.00027397,7]
[384890725,1757620246826,-2290.47,0.00027397,7]
[384890726,1757620246835,-2409.82,0.00027397,7]
[384890727,1757620246845,-400.0,0.00027397,7]
[384890728,1757620246855,-400.0,0.00027397,7]
[384890729,1757620246864,-400.0,0.00027397,7]
[384890730,1757620246874,-400.0,0.00027397,7]
[384890731,1757620246884,-400.0,0.00027397,7]
[384890732,1757620246894,-400.0,0.00027397,7]
[384890733,1757620246904,-400.0,0.00027397,7]
[384890734,1757620246914,-1555.46,0.00027397,7]
[384890735,1757620246923,-400.0,0.00027397,7]
[384890736,1757620246932,-400.0,0.00027397,7]
[384890737,1757620246942,-1529.46,0.00027397,7]
[384890738,1757620246951,-400.0,0.00027397,7]
[384890739,1757620246961,-400.0,0.00027397,7]
[384890740,1757620246970,-400.0,0.00027397,7]
[384890741,1757620246980,-738.26,0.00027397,7]
[384890742,1757620246989,-738.41,0.00027397,7]
[384890743,1757620246999,-403.08,0.00027397,7]
[384890744,1757620247008,-400.0,0.00027397,7]
[384890745,1757620247018,-400.0,0.00027397,7]
[384890746,1757620247027,-500.0,0.00027397,7]
[384890747,1757620247036,-500.0,0.00027397,7]
[384890748,1757620247046,-808.6,0.00027397,7]
[384890749,1757620247056,-400.0,0.00027397,7]
[384890750,1757620247065,-789.19,0.00027397,7]
[384890751,1757620247075,-400.0,0.00027397,7]
[384890752,1757620247162,-1952.72,0.00027397,7]
[384890753,1757620247172,-2628.68,0.00027397,7]
[384890754,1757620247181,-400.0,0.00027397,7]
[384890755,1757620247190,-400.0,0.00027397,7]
[384890756,1757620247200,-400.0,0.00027397,7]
[384890757,1757620247209,-400.66022558,0.00027397,7]
[384890758,1757620247219,-400.0,0.00027397,7]
[384890759,1757620247228,-151.0,0.00027397,7]
[384890760,1757620247237,-400.0,0.00027397,7]
[384890761,1757620247247,-2716.3,0.00027397,7]
[384890762,1757620247256,-654.08,0.00027397,7]
[384890763,1757620247265,-400.0,0.00027397,7]
[384890764,1757620247274,-830.34,0.00027397,7]
[384890765,1757620247283,-500.0,0.00027397,7]
[384890766,1757620247292,-1471.95,0.00027397,7]
[384890767,1757620247301,-2217.68,0.00027397,7]
[384890768,1757620247310,-150.0,0.00027397,2]
[384890769,1757620247319,-2907.51,0.00027397,7]
[384890770,1757620247329,-500.0,0.00027397,2]
[384890771,1757620247338,-1501.77,0.00027397,7]
[384890772,1757620247347,-2286.54,0.00027397,7]
[384890773,1757620247356,-400.0,0.00027397,7]
[384890774,1757620247365,-531.12,0.00027397,7]
[384890775,1757620247373,-400.0,0.00027397,7]
[384890776,1757620247383,-400.0,0.00027397,7]
[384890777,1757620247394,-500.0,0.00027397,2]
[384890778,1757620247403,-776.82,0.00027397,7]
[384890779,1757620247412,-400.0,0.00027397,7]
[384890780,1757620247422,-400.0,0.00027397,7]
[384890781,1757620247431,-1725.11,0.00027397,7]
[384890782,1757620247441,-151.0,0.00027397,7]
[384890783,1757620247450,-500.0,0.00027397,2]
[384890784,1757620247460,-400.0,0.00027397,7]
[384890785,1757620247470,-1013.51,0.00027397,7]
[384890786,1757620247479,-507.97,0.00027397,7]
[384890787,1757620247489,-400.0,0.00027397,7]
[384890788,1757620247500,-1883.64,0.00027397,7]
[384890789,1757620247510,-400.0,0.00027397,7]
[384890790,1757620247519,-150.0,0.00027397,2]
[384890791,1757620247529,-150.0,0.00027397,2]
[384890792,1757620247538,-400.0,0.00027397,7]
[384890793,1757620247547,-1000.0,0.00027397,7]
[384890794,1757620247567,-3000.48,0.00027397,7]
[384890795,1757620247578,-2134.34,0.00027397,7]
[384890796,1757620247587,-400.0,0.00027397,7]
[384890797,1757620247597,-400.0,0.00027397,7]
[384890798,1757620247606,-400.0,0.00027397,7]
[384890799,1757620247617,-151.0,0.00027397,7]
[384890800,1757620247626,-151.0,0.00027397,7]
[384890801,1757620247636,-400.0,0.00027397,7]
[384890802,1757620247645,-400.0,0.00027397,7]
[384890803,1757620247655,-985.44,0.00027397,7]
[384890804,1757620247665,-400.0,0.00027397,7]
[384890805,1757620247675,-400.0,0.00027397,7]
[384890806,1757620247685,-400.0,0.00027397,7]
[384890807,1757620247694,-1958.22,0.00027397,7]
[384890808,1757620247703,-400.0,0.00027397,7]
[384890809,1757620247713,-400.0,0.00027397,7]
[384890810,1757620247725,-400.0,0.00027397,7]
[384890811,1757620247734,-1766.39,0.00027397,7]
[384890812,1757620247743,-400.0,0.00027397,7]
[384890813,1757620247754,-400.0,0.00027397,7]
[384890814,1757620247764,-400.0,0.00027397,7]
[384890815,1757620247773,-400.0,0.00027397,7]
[384890816,1757620247783,-1220.19,0.00027397,7]
[384890817,1757620247797,-1849.63,0.00027397,7]
[384890818,1757620247808,-940.02,0.00027397,7]
[384890819,1757620247818,-400.0,0.00027397,7]
[384890820,1757620247828,-400.0,0.00027397,7]
[384890821,1757620247838,-400.0,0.00027397,7]
[384890822,1757620247848,-400.0,0.00027397,7]
[384890823,1757620247858,-400.0,0.00027397,7]
[384890824,1757620247867,-400.0,0.00027397,7]
[384890825,1757620247877,-400.0,0.00027397,7]
[384890826,1757620247887,-1613.95,0.00027397,7]
[384890827,1757620247897,-400.0,0.00027397,7]
[384890828,1757620247906,-2710.31,0.00027397,7]
[384890829,1757620247917,-400.0,0.00027397,7]
[384890830,1757620247927,-401.88287578,0.00027397,7]
[384890831,1757620247936,-400.0,0.00027397,7]
[384890832,1757620247945,-400.0,0.00027397,7]
[384890833,1757620247956,-400.0,0.00027397,7]
[384890834,1757620247965,-400.0,0.00027397,7]
[384890835,1757620247975,-400.0,0.00027397,7]
[384890836,1757620247984,-600.43,0.00027397,7]
[384890837,1757620247993,-2012.87,0.00027397,7]
[384890838,1757620248003,-1899.96,0.00027397,7]
[384890839,1757620248012,-400.0,0.00027397,7]
[384890840,1757620248021,-400.0,0.00027397,7]
[384890841,1757620248031,-400.0,0.00027397,7]
[384890842,1757620248041,-2152.21,0.00027397,7]
[384890844,1757620248051,-2004.12,0.00027397,7]
[384890846,1757620248061,-640.5,0.00027397,7]
[384890848,1757620248070,-640.5,0.00027397,7]
[384890850,1757620248079,-400.0,0.00027397,7]
[384890852,1757620248089,-400.0,0.00027397,7]
[384890854,1757620248098,-1220.02,0.00027397,7]
[384890856,1757620248108,-540.83107927,0.00027397,7]
[384890858,1757620248118,-400.0,0.00027397,7]
[384890860,1757620248127,-400.0,0.00027397,7]